bitfinex/quotes_ETHUSD_20260108
["timestamp","ask_amount","ask_price","bid_price","bid_amount"]
[1767867527851,0.001,3108.8,3108.5,0.96923037]
[1767867529823,0.001,3108.8,3108.6,0.96923037]
[1767867530013,0.001,3109.3,3108.8,0.96923037]
[1767867530518,0.99654198,3109.9,3109.2,0.96923037]
[1767867530920,3.24569673,3109.8,3109.2,0.96923037]
[1767867531300,3.21574456,3109.7,3109.2,0.96923037]
[1767867531500,0.0309975,3109.6,3109.1,0.844]
[1767867531728,0.0309975,3109.6,3109.2,0.96923037]
[1767867531926,0.001,3109.6,3109.2,0.96923037]
[1767867532128,0.001,3109.6,3109.1,0.844]
[1767867532601,0.001,3109.6,3109.2,0.96923037]
[1767867533231,0.001,3109.6,3109.2,0.14454737]
[1767867535652,0.001,3109.6,3109.1,0.844]
[1767867535653,0.99754198,3109.6,3109.1,0.844]
[1767867536249,0.99754198,3109.6,3109.2,0.96923037]
[1767867536250,0.0299975,3109.5,3109.2,0.96923037]
[1767867536454,0.99754198,3109.6,3109.1,0.844]
[1767867536657,0.0299975,3109.5,3109.1,0.844]
[1767867536845,0.99754198,3109.6,3109.1,0.844]
[1767867536846,0.0309975,3109.6,3109.1,1.81323037]
[1767867537026,0.0309975,3109.6,3109.1,0.96923037]
[1767867537425,0.001,3109.6,3109.1,0.96923037]
[1767867537856,0.001,3109.6,3109.2,0.96923037]
[1767867538021,3.21524242,3110.2,3109.6,0.96923037]
[1767867538022,0.0299975,3110.1,3109.6,0.96923037]
[1767867538424,3.21499618,3110.5,3109.6,0.96923037]
[1767867539933,6.42962772,3110.6,3109.6,0.96923037]
[1767867540304,4.21135584,3110.6,3109.6,0.96923037]
[1767867540571,4.21135584,3110.6,3109.7,0.96923037]
[1767867540572,0.0299975,3110.5,3109.7,0.96923037]
[1767867541271,1.02653948,3110.5,3109.7,0.96923037]
[1767867541431,0.99654198,3110.1,3109.4,0.844]
[1767867541632,0.0299975,3110.0,3109.4,1.78521157]
[1767867542873,4.21669033,3110.0,3109.4,0.844]
[1767867543227,1.00124247,3110.0,3109.4,0.844]
[1767867543432,1.00124247,3110.0,3109.4,1.34449086]
[1767867543862,1.00124247,3110.0,3109.4,0.844]
[1767867544454,0.0299975,3110.0,3109.5,0.95006544]
[1767867544672,0.0299975,3110.1,3109.5,0.95006544]
[1767867546986,0.91506088,3110.2,3109.6,0.95346228]
[1767867547188,4.13017713,3110.4,3109.6,0.95346228]
[1767867547392,5.22749963,3110.4,3109.6,0.95346228]
[1767867547595,0.91506088,3110.9,3109.6,0.95346228]
[1767867547765,3.21541685,3111.0,3110.0,0.95513051]
[1767867548092,0.94505838,3110.9,3110.2,0.45513051]
[1767867548260,4.12966805,3110.8,3110.0,0.45513051]
[1767867548461,0.0299975,3110.7,3110.0,0.82219572]
[1767867548802,0.94505838,3110.7,3110.0,0.36706521]
[1767867548996,0.94505838,3110.7,3110.0,3.58249746]
[1767867549212,0.0299975,3110.7,3110.1,0.45735383]
[1767867549501,0.0299975,3110.8,3110.1,3.67485503]
[1767867549804,0.0299975,3110.8,3110.1,4.20881021]
[1767867550184,0.0299975,3110.8,3110.2,0.45955052]
[1767867550893,4.15966964,3110.8,3110.1,0.53395518]
[1767867551083,0.91506088,3110.7,3109.9,3.21551453]
[1767867551283,0.94505838,3110.6,3109.9,3.21551453]
[1767867551478,0.0299975,3110.6,3110.1,0.46387938]
[1767867551672,0.0299975,3110.9,3110.2,0.46387938]
[1767867552485,3.24450322,3110.9,3110.2,0.46387938]
[1767867552696,3.24450798,3110.9,3110.2,0.46387938]
[1767867553142,4.15956886,3110.9,3110.2,0.46387938]
[1767867553494,0.001,3110.4,3110.2,0.46387938]
[1767867553841,0.94505838,3110.9,3110.2,0.36792006]
[1767867554333,0.91506088,3110.8,3110.2,0.36792006]
[1767867554495,0.0299975,3110.9,3110.2,0.83810188]
[1767867555295,0.94505838,3110.9,3110.2,4.05330492]
[1767867555526,0.91506088,3110.9,3110.2,0.83810188]
[1767867555825,0.91506088,3110.9,3110.2,3.68540282]
[1767867557645,0.001,3111.0,3110.3,0.47626226]
[1767867557935,0.001,3111.0,3110.4,0.47626226]
[1767867558638,0.001,3111.0,3110.6,0.47824367]
[1767867559705,0.91506088,3111.5,3110.8,0.48020098]
[1767867559900,0.91506088,3111.5,3110.8,1.32420098]
[1767867560137,0.91506088,3111.9,3110.9,0.48020098]
[1767867560317,0.91506088,3111.7,3110.9,0.48020098]
[1767867560525,0.94505838,3111.6,3110.9,0.48020098]
[1767867560701,0.94505838,3111.6,3111.0,3.21440051]
[1767867561215,0.94505838,3111.6,3110.9,0.48020098]
[1767867561534,0.94505838,3111.6,3110.9,3.69460188]
[1767867561739,0.94505838,3111.6,3111.0,0.77531894]
[1767867562040,0.0299975,3111.6,3111.1,0.48404591]
[1767867562339,0.91506088,3112.1,3111.1,0.48404591]
[1767867562712,4.12839641,3112.1,3111.2,0.48594158]
[1767867562909,0.94505838,3112.0,3111.2,0.48594158]
[1767867563116,1.65223382,3111.9,3111.2,0.48594158]
[1767867563318,0.0299975,3111.8,3111.2,0.48594158]
[1767867563614,0.94505838,3111.8,3111.0,0.844]
[1767867564343,0.94505838,3111.8,3110.9,0.844]
[1767867564545,0.91506088,3111.8,3111.0,0.48965801]
[1767867564838,0.94505838,3112.0,3111.2,0.48965801]
[1767867565028,0.0299975,3112.0,3111.2,0.48965801]
[1767867565227,0.94505838,3112.1,3110.9,7.30510374]
[1767867565439,0.94505838,3112.1,3111.0,0.844]
[1767867565747,0.94505838,3112.1,3110.9,6.42895871]
[1767867565748,0.94505838,3112.1,3110.9,3.21445487]
[1767867565910,0.94505838,3112.1,3111.0,0.844]
[1767867566240,0.001,3111.5,3111.0,0.844]
[1767867566437,0.91606088,3111.5,3111.0,0.844]
[1767867567228,0.001,3111.5,3111.0,0.844]
[1767867567432,0.001,3111.5,3110.9,1.33729079]
[1767867567632,0.91606088,3111.5,3110.9,4.05850369]
[1767867568016,0.91606088,3111.5,3111.0,3.21439373]
[1767867568224,0.001,3111.5,3111.0,3.21439373]
[1767867568544,0.001,3111.5,3111.0,3.7094651]
[1767867569331,0.001,3111.5,3111.0,0.49507137]
[1767867569631,0.001,3111.5,3111.0,4.55346609]
[1767867569827,0.001,3111.5,3111.0,1.33907137]
[1767867570042,0.001,3111.5,3111.0,4.55346711]
[1767867570212,0.001,3111.5,3111.0,5.33027317]
[1767867570640,0.001,3111.5,3111.0,1.62080606]
[1767867570948,0.91606088,3111.5,3111.0,0.844]
[1767867571331,4.1299576,3111.5,3110.9,0.844]
[1767867571535,0.91506088,3111.4,3110.6,3.7167556]
[1767867571751,0.94505838,3111.4,3110.7,4.0586482]
[1767867572060,3.61948144,3111.3,3110.4,0.5020018]
[1767867572225,1.00214143,3111.0,3110.0,3.61948144]
[1767867572429,1.00214143,3110.8,3110.1,0.844]
[1767867572728,1.00214143,3110.8,3110.1,4.05926536]
[1767867573035,1.00214143,3110.8,3109.9,7.33863232]
[1767867573036,1.00214143,3110.8,3109.9,0.50368669]
[1767867573354,1.00214143,3110.8,3110.1,7.27464675]
[1767867573659,1.00214143,3110.8,3110.2,0.03215227]
[1767867573854,1.00214143,3111.0,3110.2,0.53914655]
[1767867574026,1.00214143,3111.2,3110.5,4.12647572]
[1767867574228,0.001,3111.5,3110.6,0.03214813]
[1767867574229,1.00214143,3111.4,3110.6,0.03214813]
[1767867574958,1.00214143,3111.3,3110.5,4.12647572]
[1767867575260,1.00214143,3111.3,3110.6,0.73414338]
[1767867575460,1.00214143,3111.3,3110.4,0.51023254]
[1767867575649,1.00214143,3111.3,3110.5,3.21485562]
[1767867576157,1.00214143,3111.3,3110.6,3.21481062]
[1767867576459,0.0299975,3111.4,3110.7,0.51182317]
[1767867576629,1.00214143,3111.4,3110.6,3.72663379]
[1767867576832,1.00214143,3111.4,3110.7,1.57861152]
[1767867577233,1.00214143,3111.4,3110.8,3.21460717]
[1767867578133,1.00214143,3111.4,3110.8,3.21660717]
[1767867578333,0.001,3111.3,3110.8,3.21660717]
[1767867578534,0.001,3111.3,3110.9,0.58502787]
[1767867579646,0.001,3111.3,3111.0,3.21440051]
[1767867579841,0.001,3111.3,3111.0,3.73089862]
[1767867580158,0.001,3111.3,3111.0,0.51649811]
[1767867580658,1.00214143,3111.8,3110.9,3.7994875]
[1767867580830,1.03213893,3111.7,3110.8,0.002]
[1767867581034,3.61948144,3111.4,3110.9,0.844]
[1767867581234,1.00214143,3111.3,3110.9,0.844]
[1767867581760,1.00214143,3111.1,3110.8,0.002]
[1767867583138,1.00214143,3110.9,3109.9,0.52099345]
[1767867583338,1.00214143,3110.7,3110.0,4.05938025]
[1767867583533,1.00214143,3110.7,3110.1,3.21527674]
[1767867583839,1.00214143,3110.7,3109.8,0.002]
[1767867584036,1.00214143,3110.7,3110.0,3.21540402]
[1767867584254,1.00214143,3110.7,3110.1,0.0321533]
[1767867584465,1.00214143,3110.7,3110.0,6.4308381]
[1767867584466,1.00214143,3110.7,3110.0,3.21540402]
[1767867584766,1.00214143,3110.7,3110.0,3.21542028]
[1767867584965,1.00214143,3110.7,3109.9,4.46348144]
[1767867585360,1.00214143,3110.7,3110.0,0.844]
[1767867585361,1.00214143,3110.6,3110.0,0.844]
[1767867586368,1.00214143,3110.6,3110.0,4.05942952]
[1767867586565,1.00214143,3110.8,3110.0,3.21542952]
[1767867587873,1.00214143,3110.8,3109.9,4.46348144]
[1767867588046,1.00214143,3110.8,3109.9,7.67896196]
[1767867588251,1.00214143,3110.8,3110.0,3.21533464]
[1767867588654,1.00214143,3110.7,3109.9,7.67899603]
[1767867592275,1.00214143,3110.7,3110.2,0.002]
[1767867593187,1.03213893,3110.7,3110.2,0.002]
[1767867593347,1.00214143,3110.7,3110.2,0.002]
[1767867593886,1.00014144,3110.7,3110.2,0.002]
[1767867594060,1.00214143,3110.6,3110.2,0.002]
[1767867594472,1.00214143,3110.5,3110.2,0.002]
[1767867594995,1.00214143,3110.5,3109.8,3.74435783]
[1767867594996,1.00214143,3110.3,3109.8,0.002]
[1767867596966,1.00214143,3110.2,3109.8,0.002]
[1767867603676,3.63968911,3110.5,3109.8,0.002]
[1767867603996,1.38857904,3110.5,3109.8,0.55492369]
[1767867604310,0.96388338,3110.4,3109.8,0.55492369]
[1767867604616,0.96388338,3110.6,3109.8,0.55492369]
[1767867604785,0.96388338,3110.6,3110.0,0.55404656]
[1767867604991,0.0299975,3110.5,3110.0,0.55404656]
[1767867605469,0.96388338,3110.6,3110.1,0.002]
[1767867605774,0.99388088,3110.6,3110.1,0.002]
[1767867606591,0.96388338,3110.8,3110.1,0.55826633]
[1767867606781,0.96388338,3110.8,3110.2,0.58062674]
[1767867608000,0.99388088,3110.8,3110.2,0.58062674]
[1767867608485,0.96388338,3110.8,3110.2,1.13906105]
[1767867608687,0.96488338,3111.0,3110.3,0.55843431]
[1767867608993,0.96488338,3111.0,3110.3,1.29744696]
[1767867608994,0.96388338,3110.9,3110.3,1.29744696]
[1767867609606,0.001,3111.0,3110.4,0.55949707]
[1767867609810,0.001,3111.0,3110.7,0.55949707]
[1767867610713,0.99388088,3111.2,3110.5,3.21488588]
[1767867610898,0.99388088,3111.2,3110.6,0.40588859]
[1767867611287,0.96388338,3111.2,3110.6,3.6206919]
[1767867611499,0.96388338,3111.2,3110.6,0.40588859]
[1767867613321,0.96388338,3111.0,3110.5,3.2149141]
[1767867613630,0.99388088,3110.9,3109.9,3.78]
[1767867613924,0.99388088,3110.9,3109.9,0.844]
[1767867614123,0.96388338,3110.3,3109.5,0.002]
[1767867614310,0.96388338,3110.3,3109.6,0.844]
[1767867614821,0.96388338,3110.3,3109.6,2.14043339]
[1767867615127,0.96388338,3110.3,3109.7,3.21569027]
[1767867615624,0.96388338,3110.3,3109.8,3.21563532]
[1767867616320,0.96388338,3110.3,3109.7,3.21572039]
[1767867616726,0.96388338,3110.3,3109.6,4.62845658]
[1767867617323,0.96388338,3110.3,3109.6,7.84430427]
[1767867617631,0.001,3110.2,3109.7,0.78463043]
[1767867619030,0.001,3110.2,3109.8,3.21564087]
[1767867621129,0.96488338,3110.2,3109.8,3.21564087]
[1767867621329,0.001,3110.2,3109.8,3.21564087]
[1767867621504,0.001,3110.2,3109.7,0.78463043]
[1767867621705,0.96488338,3110.2,3109.7,0.78463043]
[1767867622222,0.96388338,3110.4,3109.7,0.78463043]
[1767867622404,0.96388338,3110.4,3109.6,4.05980423]
[1767867623453,0.96388338,3110.3,3109.5,0.002]
[1767867623636,0.96388338,3110.0,3109.5,0.002]
[1767867624956,3.62109628,3109.5,3109.1,0.002]
[1767867625102,4.46509628,3110.1,3108.8,0.002]
[1767867625103,0.96388338,3109.3,3108.8,0.002]
[1767867626435,0.96388338,3109.2,3108.8,0.002]
[1767867626634,0.96388338,3109.2,3108.5,0.002]
[1767867626854,0.96388338,3109.2,3108.3,0.002]
[1767867626855,0.96388338,3109.1,3108.3,0.002]
[1767867627508,0.96388338,3108.9,3108.3,0.002]
[1767867629237,0.96388338,3108.9,3108.6,0.002]
[1767867629408,0.96388338,3108.7,3108.6,0.00099362]
[1767867632634,4.18066209,3108.7,3108.6,0.00099362]
[1767867632844,4.5987283,3108.7,3108.6,0.00099362]
[1767867633047,1.03472755,3108.6,3108.3,0.002]
[1767867634657,4.25146585,3108.8,3108.3,0.002]
[1767867635054,1.03472755,3108.7,3108.3,0.002]
[1767867635944,4.2515308,3108.7,3108.3,0.002]
[1767867637047,1.03472755,3108.6,3108.3,0.002]
[1767867637955,4.2516136,3108.6,3108.3,0.002]
[1767867638135,1.03472755,3108.6,3108.3,0.002]
[1767867638335,1.03472755,3108.9,3108.3,0.002]
[1767867638554,1.78148489,3108.9,3108.3,0.002]
[1767867639061,3.21646831,3109.0,3108.3,1.02350166]
[1767867639959,4.25119586,3109.0,3108.3,1.02350166]
[1767867640763,4.25119586,3109.0,3108.6,0.002]
[1767867640957,0.001,3108.7,3108.6,0.002]
[1767867641556,1.03472755,3109.8,3108.6,1.02350166]
[1767867642143,4.25047183,3109.7,3108.8,1.02150166]
[1767867642338,1.03472755,3109.7,3109.0,1.02150166]
[1767867642541,4.25027844,3109.9,3109.0,1.02150166]
[1767867642870,1.03472755,3109.8,3109.0,1.02150166]
[1767867643557,1.03472755,3109.8,3108.9,0.42382804]
[1767867643763,1.03472755,3109.7,3108.9,3.64035357]
[1767867644065,1.03472755,3109.7,3109.0,0.36403536]
[1767867644448,1.03472755,3109.7,3109.0,1.02150166]
[1767867645938,3.21564345,3109.8,3109.0,1.02150166]
[1767867646336,1.03472755,3110.1,3109.1,1.02150166]
[1767867647189,1.03472755,3110.3,3109.1,1.02150166]
[1767867647878,3.21522731,3110.2,3109.3,1.02150166]
[1767867648075,3.21522731,3110.2,3109.5,1.02150166]
[1767867649167,7.46518217,3110.2,3109.5,1.02150166]
[1767867649507,1.03472755,3110.1,3109.1,1.02150166]
[1767867650286,6.43045462,3110.2,3109.1,1.02150166]
[1767867650287,1.03472755,3109.9,3109.1,1.02150166]
[1767867650588,1.03472755,3109.9,3109.1,0.844]
[1767867650979,1.03472755,3109.9,3109.1,1.29243821]
[1767867652268,1.03472755,3109.9,3109.1,5.53029734]
[1767867652468,3.21543408,3110.0,3109.2,1.02150166]
[1767867652793,0.001,3109.6,3109.2,1.02150166]
[1767867656288,0.71072755,3109.9,3109.2,1.02150166]
[1767867656605,0.71072755,3109.9,3109.3,0.44737314]
[1767867656905,1.03472755,3111.0,3109.9,1.02150166]
[1767867657092,1.03472755,3111.0,3110.2,1.02150166]
[1767867657397,1.03472755,3110.9,3109.9,0.844]
[1767867657693,1.03472755,3110.8,3109.9,2.05205183]
[1767867658024,1.03472755,3110.8,3110.0,1.02150166]
[1767867658307,1.03472755,3111.2,3110.0,1.02150166]
[1767867658591,1.03472755,3111.2,3109.9,1.03055017]
[1767867658592,1.03472755,3111.2,3110.2,1.02150166]
[1767867658761,3.21413419,3111.3,3110.4,1.02150166]
[1767867659514,1.03472755,3111.4,3110.5,1.02150166]
[1767867659666,4.24850824,3111.6,3110.5,1.02150166]
[1767867660073,1.03472755,3111.5,3110.5,1.02150166]
[1767867660379,1.03472755,3111.5,3110.7,1.02150166]
[1767867660589,4.75786775,3111.5,3110.7,1.02150166]
[1767867660898,1.54397063,3111.5,3110.7,1.02150166]
[1767867661267,4.75786753,3111.5,3110.7,1.02150166]
[1767867661670,1.03472755,3111.4,3110.5,4.23636908]
[1767867662485,1.03472755,3111.4,3110.5,7.45128629]
[1767867662799,1.05444032,3111.4,3110.6,1.10427408]
[1767867663892,4.28235714,3111.6,3110.6,1.10427408]
[1767867664093,0.001,3111.1,3110.6,1.10427408]
[1767867664294,0.844,3112.0,3110.5,6.87715777]
[1767867664295,4.28181786,3112.1,3111.0,4.64755519]
[1767867664603,0.844,3112.4,3111.0,5.08121433]
[1767867664604,1.06853126,3111.9,3111.0,5.08121433]
[1767867664776,1.06853126,3111.8,3111.0,5.08121433]
[1767867665406,0.42819417,3111.9,3111.1,1.02287018]
[1767867665783,0.844,3112.4,3111.1,1.02287018]
[1767867665784,1.06853126,3112.8,3111.1,1.02287018]
[1767867665975,1.06853126,3112.5,3111.1,1.02287018]
[1767867666801,3.21196233,3113.4,3111.3,1.02287018]
[1767867666802,1.06853126,3112.7,3111.3,1.02287018]
[1767867666974,1.06853126,3113.2,3111.3,1.02287018]
[1767867668080,1.06853126,3113.2,3111.5,1.02287018]
[1767867668276,1.06853126,3113.0,3111.5,1.2095572]
[1767867668801,1.06853126,3112.8,3111.7,1.02287018]
[1767867669585,1.06853126,3112.8,3111.8,0.844]
[1767867669784,1.06853126,3112.8,3111.4,1.02287018]
[1767867670074,1.06853126,3112.8,3111.1,1.02287018]
[1767867670273,1.06853126,3112.6,3111.1,1.02287018]
[1767867670490,1.06853126,3112.6,3111.4,1.02287018]
[1767867670691,1.9022721,3112.7,3111.6,1.02287018]
[1767867670878,1.06853126,3112.9,3111.8,1.02287018]
[1767867671602,5.03008852,3113.1,3111.8,1.02287018]
[1767867671780,0.74925829,3113.1,3111.8,1.02287018]
[1767867671974,3.21219136,3113.2,3111.8,1.02287018]
[1767867672176,1.06853126,3113.1,3111.8,1.02287018]
[1767867672904,1.06853126,3112.9,3111.8,4.23643921]
[1767867673785,1.06853126,3112.9,3111.8,7.45001334]
[1767867674106,1.06853126,3112.9,3111.9,1.02287018]
[1767867674305,6.42467072,3113.0,3111.9,1.02287018]
[1767867674306,1.81785146,3112.8,3111.9,1.02287018]
[1767867674714,1.81785146,3112.8,3111.9,4.23630672]
[1767867675505,1.06853126,3112.8,3111.9,4.23630672]
[1767867675699,0.001,3112.6,3111.9,4.23630672]
[1767867675903,0.001,3112.6,3112.0,1.02287018]
[1767867676707,0.001,3112.6,3112.0,4.23617631]
[1767867676911,0.001,3112.6,3112.0,1.02287018]
[1767867678408,0.001,3112.6,3112.0,4.23623091]
[1767867678608,0.001,3112.6,3112.0,3.21336073]
[1767867678809,0.001,3112.6,3111.9,3.21343993]
[1767867679707,0.001,3112.6,3112.0,3.21334793]
[1767867679907,0.001,3112.6,3112.0,4.05634793]
[1767867680282,1.06953126,3112.6,3111.9,0.843]
[1767867680489,1.06853126,3112.5,3111.7,0.843]
[1767867680695,1.06853126,3112.5,3111.7,4.05661047]
[1767867681505,1.06853126,3112.5,3111.7,0.843]
[1767867681696,1.06853126,3112.5,3111.8,1.05500592]
[1767867682010,1.06953126,3112.6,3111.8,1.02287018]
[1767867682212,1.06853126,3112.4,3111.2,1.02287018]
[1767867682408,1.06853126,3112.3,3111.0,1.02287018]
[1767867682579,1.06853126,3112.3,3111.0,4.23719124]
[1767867682783,1.06853126,3112.3,3111.1,3.21427066]
[1767867683179,1.06853126,3112.3,3111.2,3.21418541]
[1767867683384,1.06853126,3112.1,3111.2,3.21418541]
[1767867683585,1.06853126,3112.1,3111.2,4.23705559]
[1767867683807,1.06853126,3112.1,3111.2,1.02287018]
[1767867684206,1.06853126,3112.0,3111.2,1.02287018]
[1767867685012,1.06853126,3112.0,3111.2,4.23704783]
[1767867685202,1.45170449,3112.0,3111.2,4.23704783]
[1767867685584,1.06853126,3111.9,3111.2,1.02287018]
[1767867685802,1.06853126,3111.9,3111.1,3.21424774]
[1767867686213,1.06853126,3111.9,3111.2,3.21418473]
[1767867686521,1.06853126,3111.9,3111.1,4.23716737]
[1767867687081,0.38317323,3112.0,3111.1,4.23716737]
[1767867687082,0.38317323,3112.0,3111.2,1.02287018]
[1767867687309,1.06853126,3112.1,3111.1,6.42859438]
[1767867688087,1.06853126,3112.0,3111.1,4.23716737]
[1767867688885,1.06853126,3111.9,3111.1,4.23716737]
[1767867689421,1.06853126,3111.9,3111.1,7.45146456]
[1767867689721,1.06853126,3111.9,3111.1,4.23716737]
[1767867690795,4.28187112,3112.1,3111.2,1.02287018]
[1767867691122,0.79029757,3112.0,3111.2,1.02287018]
[1767867692120,0.79029757,3112.0,3111.2,4.23698852]
[1767867692290,8.70794024,3112.0,3111.2,1.02287018]
[1767867692486,1.08514837,3111.9,3111.2,1.02287018]
[1767867692708,3.61910462,3111.8,3111.2,1.02287018]
[1767867692921,3.61910462,3111.8,3110.8,3.61910462]
[1767867692922,1.08514837,3111.6,3110.8,1.09761902]
[1767867693092,1.08514837,3111.6,3110.9,4.05745339]
[1767867693507,1.08514837,3111.6,3110.9,4.3121057]
[1767867693820,1.08514837,3111.6,3111.1,3.21424741]
[1767867693989,0.339021,3111.7,3111.1,3.21424741]
[1767867693990,0.79029757,3112.0,3111.3,1.09761902]
[1767867694186,4.30038307,3112.2,3111.6,0.01729493]
[1767867694415,1.08514837,3112.1,3111.6,0.01729493]
[1767867695224,1.08514837,3111.9,3111.6,0.01729493]
[1767867695391,1.08514837,3111.6,3111.0,3.21438613]
[1767867696602,1.08514837,3111.8,3111.0,6.42878664]
[1767867696802,1.08514837,3112.1,3111.4,4.71672364]
[1767867697132,1.08514837,3112.1,3111.4,1.09761902]
[1767867697627,0.002,3112.2,3111.5,1.09761902]
[1767867697828,0.002,3112.2,3111.5,1.12975785]
[1767867698032,0.002,3112.2,3111.5,1.09761902]
[1767867698229,0.002,3112.2,3111.7,1.09761902]
[1767867698528,0.002,3112.2,3111.8,3.21357413]
[1767867699036,0.002,3112.2,3111.8,4.31119315]
[1767867700124,0.002,3112.2,3111.8,1.09761902]
[1767867700441,0.002,3112.2,3111.6,1.09761902]
[1767867701225,0.002,3112.2,3111.6,4.31138201]
[1767867701439,1.08714837,3112.2,3111.5,0.843]
[1767867701639,1.51715892,3112.2,3111.5,0.843]
[1767867701809,1.08714837,3112.2,3111.6,3.2137787]
[1767867702134,1.08714837,3112.2,3111.5,4.05684181]
[1767867702445,1.08714837,3112.2,3111.3,0.843]
[1767867703908,0.002,3112.2,3111.4,1.09761902]
[1767867704338,0.002,3112.2,3111.5,3.21388397]
[1767867704541,1.08714837,3112.2,3111.5,3.21388397]
[1767867705662,1.08514837,3112.1,3111.3,5.15466916]
[1767867705938,1.08514837,3112.1,3111.1,4.05723519]
[1767867706113,1.08514837,3112.1,3111.2,3.21418891]
[1767867706312,1.08514837,3112.1,3111.3,3.21407322]
[1767867706518,1.08514837,3112.1,3111.1,0.843]
[1767867707326,1.55818565,3112.0,3111.1,0.843]
[1767867708528,1.55818565,3112.0,3111.2,3.21419388]
[1767867708764,1.08514837,3111.9,3111.0,3.21438996]
[1767867710167,1.08514837,3111.9,3111.0,3.21434292]
[1767867710676,1.08514837,3111.9,3109.7,3.387]
[1767867710677,1.08514837,3111.7,3110.6,4.31236005]
[1767867710834,1.08514837,3111.5,3110.6,1.94061902]
[1767867711154,1.08514837,3111.5,3111.3,0.002]
[1767867712547,1.08514837,3111.3,3110.4,1.09761902]
[1767867712762,1.08514837,3111.3,3110.3,0.844]
[1767867712923,1.08514837,3111.3,3110.3,1.94161902]
[1767867713117,1.51506193,3111.2,3110.3,5.15669331]
[1767867713425,1.51506193,3111.2,3110.3,1.94161902]
[1767867713426,1.08514837,3111.1,3110.3,1.94161902]
[1767867713634,1.08514837,3111.1,3110.3,5.15665721]
[1767867714347,1.08514837,3111.1,3110.5,3.21490513]
[1767867714556,1.08514837,3111.1,3110.3,4.31272287]
[1767867714776,1.08514837,3110.9,3109.7,0.002]
[1767867715058,1.08514837,3110.7,3109.7,0.002]
[1767867715223,1.08514837,3110.6,3109.7,0.002]
[1767867715568,0.844,3110.7,3109.2,0.844]
[1767867715569,1.08514837,3110.4,3109.2,0.844]
[1767867715929,1.08514837,3110.4,3109.3,3.21608824]
[1767867716241,1.08514837,3110.4,3109.2,5.15783713]
[1767867716419,1.08514837,3110.4,3109.1,3.21633491]
[1767867716618,1.08514837,3110.2,3109.0,4.06040703]
[1767867716862,1.08514837,3110.0,3109.0,0.844]
[1767867717825,1.08514837,3110.0,3109.0,1.94161902]
[1767867718647,4.30059895,3110.0,3109.0,1.94161902]
[1767867718950,1.08514837,3109.9,3109.1,0.03216364]
[1767867719127,1.08514837,3109.9,3109.0,8.37450885]
[1767867719327,1.26881717,3109.9,3109.1,1.09761902]
[1767867719555,1.08514837,3109.9,3109.1,1.09761902]
[1767867720359,1.08514837,3109.9,3108.9,1.94161902]
[1767867720529,1.08514837,3109.9,3109.0,1.09761902]
[1767867720828,3.21564087,3109.8,3109.0,1.09761902]
[1767867721230,4.30078924,3109.8,3108.9,0.844]
[1767867721533,1.83678121,3109.8,3108.9,0.844]
[1767867721740,1.83678121,3109.8,3109.0,3.216467]
[1767867722237,1.08514837,3110.0,3109.1,1.09761902]
[1767867722863,1.08514837,3110.0,3109.2,4.34324609]
[1767867723250,4.3378073,3110.2,3109.3,1.12698468]
[1767867723541,3.21515436,3110.3,3109.3,1.12698468]
[1767867723740,1.11763739,3110.7,3109.5,1.04746734]
[1767867723966,3.96605218,3110.8,3109.7,1.04746734]
[1767867724136,7.18070942,3110.8,3109.7,1.04746734]
[1767867724536,8.29834681,3110.8,3109.7,1.04746734]
[1767867724743,1.11763739,3110.7,3109.7,1.04746734]
[1767867724967,4.33245125,3110.6,3109.7,1.04746734]
[1767867725835,4.33245125,3110.6,3109.7,1.81430162]
[1767867726063,4.33245125,3110.6,3109.7,5.03002499]
[1767867726265,1.11763739,3110.6,3109.7,5.03002499]
[1767867726455,3.21473016,3110.7,3109.8,1.04746734]
[1767867726653,3.96604894,3110.8,3109.8,1.04746734]
[1767867726851,3.96604894,3110.8,3109.8,4.62676164]
[1767867727060,7.18070294,3110.8,3109.9,1.04746734]
[1767867727263,8.29834033,3110.8,3109.9,1.04746734]
[1767867727768,1.11763739,3110.7,3109.8,0.36365838]
[1767867728265,1.11763739,3110.7,3109.8,3.57925372]
[1767867728467,1.11763739,3110.7,3109.9,0.35792537]
[1767867728967,1.11763739,3110.7,3109.9,3.57343676]
[1767867729266,4.33219129,3110.9,3109.9,4.6209041]
[1767867729636,3.2145539,3110.9,3110.0,1.04746734]
[1767867730466,3.21441027,3111.0,3110.0,1.04746734]
[1767867730769,3.64761504,3111.0,3110.0,1.04746734]
[1767867730970,7.97970547,3111.0,3110.0,1.04746734]
[1767867733273,7.97970547,3111.0,3110.0,4.26289637]
[1767867733771,1.11763739,3111.2,3110.1,1.04746734]
[1767867735174,0.001,3111.4,3110.3,1.04746734]
[1767867735346,3.21499794,3111.4,3110.5,1.04746734]
[1767867735547,0.001,3111.4,3110.5,1.04746734]
[1767867737475,0.001,3111.4,3110.6,1.04746734]
[1767867737767,0.43425903,3111.4,3110.6,1.04746734]
[1767867737974,0.001,3111.1,3110.6,1.04746734]
[1767867739761,0.001,3111.1,3110.5,3.21484147]
[1767867739944,0.001,3111.1,3110.5,0.844]
[1767867740626,1.11863739,3111.1,3110.5,0.844]
[1767867740767,1.1166374,3111.1,3110.5,0.844]
[1767867741456,1.1166374,3111.1,3110.5,1.24989711]
[1767867742068,1.11763739,3111.2,3110.5,1.24989711]
[1767867742264,1.11763739,3111.2,3110.5,4.46480872]
[1767867742666,1.11863739,3111.4,3110.5,5.51227606]
[1767867743744,4.33264195,3111.4,3110.5,5.51227606]
[1767867743948,5.08728452,3111.4,3110.5,5.51227606]
[1767867744664,1.87327996,3111.4,3110.6,1.04746734]
[1767867745051,4.33264105,3111.4,3110.6,1.04746734]
[1767867745251,1.11763739,3111.3,3110.6,1.04746734]
[1767867745859,1.11763739,3111.3,3110.6,1.07961547]
[1767867746448,1.11763739,3111.3,3110.6,1.04746734]
[1767867747158,1.11763739,3111.3,3110.6,4.26223855]
[1767867747674,1.11763739,3111.3,3110.6,1.04746734]
[1767867747971,1.11763739,3111.3,3110.6,4.26227444]
[1767867748178,1.11763739,3111.3,3110.6,4.81809135]
[1767867748367,0.001,3111.4,3110.6,4.81809135]
[1767867748569,1.11863739,3111.4,3110.6,4.81809135]
[1767867750079,1.11863739,3111.4,3110.8,0.002]
[1767867751980,4.33262566,3111.4,3110.8,0.002]
[1767867752284,1.11763739,3111.3,3110.8,0.002]
[1767867762989,1.11763739,3111.3,3111.1,0.002]
[1767867767908,1.14477983,3111.1,3110.5,0.002]
[1767867768410,1.14477983,3111.1,3110.5,3.21688138]
[1767867768712,1.14477983,3111.1,3110.6,3.21478822]